[Event "FIDE World Senior-50 CC 2023"]
[Site "Terrasini"]
[Date "2023.11.01"]
[Round "7.16"]
[White "Golovchuk, Oleg"]
[Black "Jhunjhnuwala, Krishan"]
[Result "1/2-1/2"]
[ECO "B21"]
[WhiteElo "2067"]
[BlackElo "2268"]
[Annotator "ChessBase"]
[PlyCount "46"]
[EventDate "2023.10.22"]
[EventType "swiss"]
[EventCountry "ITA"]
[SourceTitle "playchess.com"]
[Source "ChessBase"]
[SourceQuality "1"]
[TimeControl "40/5400+30:1800+30"]

1. e4 {[%emt 0:00:07]} c5 {[%emt 0:00:05]} 2. f4 {[%emt 0:00:31]} d5 {[%emt 0:00:29]} 3. exd5 {[%emt 0:00:28]} Nf6 {[%emt 0:00:17]} 4. c4 {[%emt 0:01:45]} e6 {[%emt 0:01:12]} 5. dxe6 {[%emt 0:00:47]} Bxe6 {[%emt 0:00:19]} 6. Be2 {[%emt 0:01:01]} Nc6 {[%emt 0:01:31]} 7. Nf3 {[%emt 0:01:06]} Bd6 {[%emt 0:01:49]} 8. d3 {[%emt 0:00:50]} Qc7 {[%emt 0:02:43]} 9. g3 {[%emt 0:00:49]} O-O {[%emt 0:01:00]} 10. O-O {[%emt 0:03:24]} Rad8 {[%emt 0:02:35]} 11. Nc3 {[%emt 0:01:39]} a6 {[%emt 0:02:18]} 12. Qd2 {[%emt 0:06:08]} Rfe8 {[%emt 0:02:16]} 13. b3 {[%emt 0:02:51]} Bf8 {[%emt 0:05:40]} 14. Bb2 {[%emt 0:03:18]} Bf5 {[%emt 0:04:08]} 15. Rad1 {[%emt 0:05:51]} b5 {[%emt 0:09:08]} 16. Rfe1 {[%emt 0:14:47]} Nd4 {[%emt 0:12:54]} 17. Nxd4 {[%emt 0:12:50]} cxd4 {[%emt 0:03:13]} 18. Nd5 {[%emt 0:01:44]} Nxd5 {[%emt 0:03:15]} 19. cxd5 {[%emt 0:00:22]} Rxd5 {[%emt 0:02:34]} 20. Bf3 {[%emt 0:03:34]} Rxe1+ {[%emt 0:01:14]} 21. Rxe1 {[%emt 0:00:32]} Rd8 {[%emt 0:01:20]} 22. Be4 {[%emt 0:03:10]} Bc8 {[%emt 0:06:41]} 23. Qc1 {[%emt 0:04:01]} Qd7 {[%emt 0:35:19]} 1/2-1/2

[Event "FIDE World Senior-50 CC 2023"]
[Site "Terrasini"]
[Date "2023.11.01"]
[Round "7.17"]
[White "Mantovani, Renzo"]
[Black "Morin, Yves"]
[Result "1-0"]
[ECO "A41"]
[WhiteElo "2236"]
[BlackElo "2169"]
[Annotator "ChessBase"]
[PlyCount "71"]
[EventDate "2023.10.22"]
[EventType "swiss"]
[EventCountry "ITA"]
[SourceTitle "playchess.com"]
[Source "ChessBase"]
[SourceQuality "1"]
[TimeControl "40/5400+30:1800+30"]

1. Nf3 {[%emt 0:00:30]} d6 {[%emt 0:03:44]} 2. d4 {[%emt 0:00:35]} Bg4 {[%emt 0:00:16]} 3. e4 {[%emt 0:00:42]} Nd7 {[%emt 0:00:40]} 4. h3 {[%emt 0:00:36]} Bh5 {[%emt 0:00:29]} 5. Be3 {[%emt 0:13:11]} e6 {[%emt 0:06:18]} 6. c4 {[%emt 0:07:19]} c6 {[%emt 0:00:52]} 7. Nc3 {[%emt 0:00:09]} Ngf6 {[%emt 0:02:24]} 8. Bd3 {[%emt 0:01:53]} e5 {[%emt 0:05:55]} 9. g4 {[%emt 0:12:39]} Bg6 {[%emt 0:01:05]} 10. Qb3 {[%emt 0:00:19]} Qc7 {[%emt 0:01:30]} 11. O-O-O {[%emt 0:04:21]} Be7 {[%emt 0:08:16]} 12. Kb1 {[%emt 0:02:50]} exd4 {[%emt 0:05:12]} 13. Nxd4 {[%emt 0:03:51]} Nc5 {[%emt 0:00:38]} 14. Qc2 {[%emt 0:00:33]} Nxd3 {[%emt 0:07:27]} 15. Qxd3 {[%emt 0:02:08]} a6 {[%emt 0:08:34]} 16. f4 {[%emt 0:02:38]} h6 {[%emt 0:02:24]} 17. f5 {[%emt 0:06:48]} Bh7 {[%emt 0:00:25]} 18. Bf4 {[%emt 0:00:32]} Nd7 {[%emt 0:02:10]} 19. Qg3 {[%emt 0:00:50]} Ne5 {[%emt 0:10:41]} 20. c5 {[%emt 0:03:41]} g5 {[%emt 0:03:02]} 21. fxg6 {[%emt 0:02:40]} Bxg6 {[%emt 0:00:27]} 22. Rhe1 {[%emt 0:03:44]} O-O-O {[%emt 0:02:44]} 23. cxd6 {[%emt 0:06:54]} Bxd6 {[%emt 0:01:19]} 24. Nf5 {[%emt 0:01:08]} Bxf5 {[%emt 0:01:50]} 25. exf5 {[%emt 0:00:39]} f6 {[%emt 0:08:44]} 26. Ne4 {[%emt 0:01:06]} Be7 {[%emt 0:00:08]} 27. Rxd8+ {[%emt 0:04:53]} Qxd8 {[%emt 0:00:12]} 28. Nxf6 {[%emt 0:05:42]} Bxf6 {[%emt 0:00:12]} 29. Bxe5 {[%emt 0:00:18]} Bh4 {[%emt 0:00:20]} 30. Qb3 {[%emt 0:01:32]} Re8 {[%emt 0:10:03]} 31. Rd1 {[%emt 0:02:45]} Qe7 {[%emt 0:01:25]} 32. Bf4 {[%emt 0:03:02]} Qe4+ {[%emt 0:00:30]} 33. Qd3 {[%emt 0:00:06]} Bg5 {[%emt 0:07:04]} 34. Qxe4 Rxe4 {[%emt 0:00:30]} 35. Bxg5 hxg5 {[%emt 0:00:30]} 36. Rd6 {[%emt 0:01:02]} 1-0

[Event "FIDE World Senior-50 CC 2023"]
[Site "Terrasini"]
[Date "2023.11.01"]
[Round "7.18"]
[White "Prasad, Devaki V"]
[Black "Nikolaidis, Konstantinos"]
[Result "1/2-1/2"]
[ECO "B81"]
[WhiteElo "2200"]
[BlackElo "2096"]
[Annotator "ChessBase"]
[PlyCount "65"]
[EventDate "2023.10.22"]
[EventType "swiss"]
[EventCountry "ITA"]
[SourceTitle "playchess.com"]
[Source "ChessBase"]
[SourceQuality "1"]
[TimeControl "40/5400+30:1800+30"]

1. e4 {[%emt 0:00:06]} c5 {[%emt 0:00:21]} 2. Nf3 {[%emt 0:00:07]} d6 {[%emt 0:00:18]} 3. d4 {[%emt 0:00:11]} cxd4 {[%emt 0:00:12]} 4. Nxd4 {[%emt 0:00:08]} Nf6 {[%emt 0:00:08]} 5. Nc3 {[%emt 0:00:09]} a6 {[%emt 0:00:25]} 6. h3 {[%emt 0:00:24]} e6 {[%emt 0:03:29]} 7. g4 {[%emt 0:00:21]} b5 {[%emt 0:00:58]} 8. Bg2 {[%emt 0:02:27]} Bb7 {[%emt 0:00:46]} 9. O-O {[%emt 0:04:06]} Qc7 {[%emt 0:05:35]} 10. Re1 {[%emt 0:00:53]} Be7 {[%emt 0:04:23]} 11. Nd5 {[%emt 0:00:47]} Nxd5 {[%emt 0:16:47]} 12. exd5 {[%emt 0:00:09]} e5 {[%emt 0:00:24]} 13. Nf5 {[%emt 0:00:26]} O-O {[%emt 0:04:26]} 14. a4 {[%emt 0:07:01]} g6 {[%emt 0:07:38]} 15. Nxe7+ {[%emt 0:05:25]} Qxe7 {[%emt 0:00:03]} 16. axb5 {[%emt 0:13:11]} axb5 {[%emt 0:03:07]} 17. Rxa8 {[%emt 0:03:08]} Bxa8 {[%emt 0:00:03]} 18. Qd3 {[%emt 0:00:54]} Qb7 {[%emt 0:03:42]} 19. Bd2 {[%emt 0:18:47]} Na6 {[%emt 0:05:39]} 20. b4 {[%emt 0:00:18]} Rc8 {[%emt 0:02:39]} 21. c3 {[%emt 0:04:05]} Nb8 {[%emt 0:03:53]} 22. Ra1 {[%emt 0:02:37]} Nd7 {[%emt 0:06:02]} 23. Ra5 {[%emt 0:05:42]} Rb8 {[%emt 0:07:52]} 24. g5 {[%emt 0:01:39]} f5 {[%emt 0:09:53]} 25. gxf6 {[%emt 0:07:38]} Nxf6 {[%emt 0:00:06]} 26. Bg5 {[%emt 0:05:30]} Nh5 {[%emt 0:01:18]} 27. Qe3 {[%emt 0:01:02]} Qc7 {[%emt 0:03:21]} 28. Qa7 {[%emt 0:05:44]} Qxa7 {[%emt 0:03:56]} 29. Rxa7 {[%emt 0:00:03]} Ng7 {[%emt 0:07:36]} 30. f4 {[%emt 0:04:13]} exf4 {[%emt 0:00:00]} 31. Bxf4 {[%emt 0:00:04]} Nf5 {[%emt 0:00:00]} 32. Be4 {[%emt 0:00:48]} Re8 {[%emt 0:00:00]} 33. Bxf5 {[%emt 0:08:57]} 1/2-1/2

[Event "FIDE World Senior-50 CC 2023"]
[Site "Terrasini"]
[Date "2023.11.01"]
[Round "7.19"]
[White "Mohr, Georg"]
[Black "Issakainen, Ari"]
[Result "1-0"]
[ECO "A49"]
[WhiteElo "2430"]
[BlackElo "2152"]
[Annotator "ChessBase"]
[PlyCount "63"]
[EventDate "2023.10.22"]
[EventType "swiss"]
[EventCountry "ITA"]
[SourceTitle "playchess.com"]
[Source "ChessBase"]
[SourceQuality "1"]
[TimeControl "40/5400+30:1800+30"]

1. g3 {[%emt 0:03:35]} g6 {[%emt 0:00:33]} 2. Bg2 {[%emt 0:00:04]} Bg7 {[%emt 0:00:05]} 3. Nf3 {[%emt 0:00:08]} Nf6 {[%emt 0:00:18]} 4. O-O {[%emt 0:00:23]} O-O {[%emt 0:00:10]} 5. d4 {[%emt 0:00:09]} d6 {[%emt 0:01:06]} 6. b3 {[%emt 0:00:30]} Nc6 {[%emt 0:03:05]} 7. Bb2 {[%emt 0:00:18]} Nd7 {[%emt 0:00:33]} 8. e4 {[%emt 0:10:12]} e5 {[%emt 0:00:36]} 9. dxe5 {[%emt 0:00:30]} Ndxe5 {[%emt 0:00:59]} 10. Nxe5 {[%emt 0:01:41]} Bxe5 {[%emt 0:00:55]} 11. Nc3 {[%emt 0:00:54]} Bg7 {[%emt 0:08:56]} 12. Re1 {[%emt 0:03:40]} f5 {[%emt 0:01:54]} 13. exf5 {[%emt 0:00:54]} Bxf5 {[%emt 0:00:38]} 14. Qc1 {[%emt 0:00:29]} Qd7 {[%emt 0:11:11]} 15. Nd5 {[%emt 0:01:03]} Rae8 {[%emt 0:00:45]} 16. Rxe8 {[%emt 0:02:39]} Rxe8 {[%emt 0:00:42]} 17. Nf6+ {[%emt 0:00:28]} Bxf6 {[%emt 0:00:09]} 18. Bxf6 {[%emt 0:00:04]} Be4 {[%emt 0:02:05]} 19. Bxe4 {[%emt 0:24:28]} Rxe4 {[%emt 0:00:13]} 20. Qd2 {[%emt 0:00:51]} Qe6 {[%emt 0:03:48]} 21. Bc3 {[%emt 0:03:11]} d5 {[%emt 0:05:28]} 22. Qd3 {[%emt 0:07:08]} d4 {[%emt 0:03:48]} 23. Bd2 {[%emt 0:00:32]} Qd5 {[%emt 0:03:04]} 24. f4 {[%emt 0:04:41]} Qe6 {[%emt 0:07:22]} 25. Kf2 {[%emt 0:00:45]} Ne7 {[%emt 0:05:15]} 26. Kf3 {[%emt 0:02:49]} Re3+ {[%emt 0:01:07]} 27. Bxe3 {[%emt 0:00:15]} dxe3 {[%emt 0:00:15]} 28. g4 {[%emt 0:05:44]} Nd5 {[%emt 0:01:11]} 29. Re1 {[%emt 0:01:22]} c6 {[%emt 0:00:42]} 30. c4 {[%emt 0:01:34]} Nf6 {[%emt 0:00:23]} 31. h3 {[%emt 0:00:20]} h5 {[%emt 0:03:29]} 32. Qxg6+ {[%emt 0:00:00]} 1-0

[Event "FIDE World Senior-50 CC 2023"]
[Site "Terrasini"]
[Date "2023.11.02"]
[Round "8.2"]
[White "Adams, Michael"]
[Black "Stefansson, Hannes"]
[Result "1/2-1/2"]
[ECO "C65"]
[WhiteElo "2670"]
[BlackElo "2529"]
[Annotator "TA"]
[PlyCount "195"]
[EventDate "2023.10.22"]
[EventType "swiss"]
[EventCountry "ITA"]
[SourceTitle "playchess.com"]
[Source "ChessBase"]
[SourceQuality "1"]
[TimeControl "40/5400+30:1800+30"]

{[%evp 19,195,17,13,4,20,25,29,0,48,50,51,30,26,27,27,25,29,27,32,18,29,18,35,29,25,0,0,-29,-20,-26,-28,-28,0,5,0,10,4,10,8,8,8,4,0,-24,-25,-34,-32,-75,-75,-82,0,0,6,10,8,8,8,6,10,0,27,33,54,54,56,33,40,23,24,23,16,9,40,40,33,24,40,40,54,54,69,54,149,54,54,0,157,133,102,40,40,40,77,77,77,69,69,54,54,54,54,54,54,54,54,54,54,54,54,33,80,54,72,0,54,33,47,0,47,33,33,33,33,0,33,0,33,33,33,33,33,8,8,8,16,8,8,8,12,8,8,8,8,8,8,8,8,8,8,8,8,8,8,8,8,8,8,8,8,8,8,0,8,0,8,8,8,8,8,8,8,0,8,8,8,0,4,0]} 1. e4 {[%emt 0:00:03]} e5 {[%emt 0:00:25]} 2. Nf3 {[%emt 0:00:09]} Nc6 {[%emt 0:00:16]} 3. Bb5 {[%emt 0:00:10]} Nf6 {[%emt 0:00:41]} 4. d3 {[%emt 0:00:11]} Bc5 {[%emt 0:01:01]} 5. c3 {[%emt 0:00:21]} O-O {[%emt 0:01:06]} 6. O-O {[%emt 0:00:25]} d6 {[%emt 0:00:40]} 7. h3 {[%emt 0:00:17]} a6 {[%emt 0:02:54]} 8. Ba4 {[%emt 0:04:41]} h6 {[%emt 0:02:22]} 9. Re1 {[%emt 0:01:16]} Re8 {[%emt 0:03:02]} 10. Nbd2 {[%emt 0:05:13]} b5 {[%emt 0:01:55]} 11. Bc2 {[%emt 0:01:22]} Bb7 {[%emt 0:09:51]} 12. Nf1 {[%emt 0:08:22]} d5 {[%emt 0:01:27]} 13. Bd2 {[%emt 0:00:30]} b4 {[%emt 0:05:15]} (13... a5 $11 {is superior.}) 14. Ng3 $14 {[%emt 0:06:44]} a5 {[%emt 0:03:36]} 15. Rc1 {[%emt 0:02:18]} bxc3 {[%emt 0:04:12]} 16. Bxc3 {[%emt 0:01:59]} dxe4 {[%emt 0:08:16]} 17. dxe4 {[%emt 0:01:10]} Qxd1 {[%emt 0:00:15]} 18. Rexd1 {[%emt 0:05:24]} a4 {[%emt 0:02:41]} 19. a3 {[%emt 0:07:23]} Re6 {[%emt 0:01:23]} 20. Nf5 {[%emt 0:07:28]} Bb6 {[%emt 0:04:29]} 21. Re1 {[%emt 0:06:08]} Nd7 {[%emt 0:01:53]} 22. Ne3 {[%emt 0:02:03]} Nd4 {[%emt 0:01:28]} 23. Bxd4 {[%emt 0:04:14]} exd4 {[%emt 0:00:49]} 24. Nc4 {[%emt 0:01:03]} c5 {[%emt 0:04:36]} 25. e5 {[%emt 0:01:50]} Ba5 {[%emt 0:03:53]} 26. Bxa4 {[%emt 0:11:32]} Bxf3 {[%emt 0:01:28]} ({But not} 26... Bxe1 27. Bxd7 Re7 28. Nxe1 $14) 27. gxf3 {[%emt 0:00:21]} Bxe1 {[%emt 0:01:56]} 28. Bxd7 {[%emt 0:00:04]} Rg6+ {[%emt 0:00:22]} 29. Kf1 {[%emt 0:00:08]} Ba5 {[%emt 0:00:14]} 30. f4 {[%emt 0:01:40]} Bc7 {[%emt 0:02:30]} 31. Ke2 {[%emt 0:04:38]} Rb8 {[%emt 0:02:36]} 32. Bf5 {[%emt 0:02:30]} Ra6 {[%emt 0:00:18]} 33. Rc2 {[%emt 0:00:06]} g5 {[%emt 0:01:53]} 34. Nd2 {[%emt 0:02:44]} gxf4 {[%emt 0:01:23]} ({Black should play} 34... Ra7 $17 35. Kf3 gxf4) 35. Rxc5 $11 {[%emt 0:01:00]} f3+ {[%emt 0:01:32]} 36. Kd1 {[%emt 0:04:11]} Bxe5 {[%emt 0:01:17]} 37. Rxe5 {[%emt 0:00:45]} Rxb2 {[%emt 0:00:08]} 38. Kc1 {[%emt 0:02:39]} ({Of course not} 38. Nxf3 Rxa3 39. Nd2 Raa2 $17) 38... Ra2 {[%emt 0:00:20]} 39. Rd5 {[%emt 0:01:44]} R2xa3 {[%emt 0:05:08]} 40. Rxd4 {[%emt 0:00:31]} R6a4 {[%emt 0:02:54]} 41. Rxa4 {[%emt 0:33:34]} Rxa4 {[%emt 0:30:06]} 42. Kc2 {[%emt 0:00:48]} Kg7 {[%emt 0:03:15]} 43. Be4 {[%emt 0:00:00]} ({Much weaker is} 43. Nxf3 Rf4 44. Bg4 h5 45. Bxh5 Kh6 $11) 43... Kf6 {[%emt 0:00:00]} 44. Bxf3 {[%emt 0:00:00]} Kg5 {[%emt 0:00:00]} 45. Bd5 {[%emt 0:00:00]} f5 {[%emt 0:00:00]} 46. Nf3+ {[%emt 0:00:00]} Kf4 {[%emt 0:00:00]} 47. Ne1 {[%emt 0:00:00]} Ke5 {[%emt 0:00:00]} 48. Bg2 {[%emt 0:00:00]} Ra3 {[%emt 0:00:00]} 49. Kd2 {[%emt 0:00:00]} Ra1 {[%emt 0:00:00]} 50. Ke2 {[%emt 0:00:00]} Rb1 {[%emt 0:00:00]} (50... Ra3 $14) 51. Bc6 {[%emt 0:00:00]} (51. Nd3+ $1 $16 Kd4 52. Kd2) 51... Rb3 $14 {[%emt 0:00:00]} 52. Bg2 {[%emt 0:00:00]} (52. Kf1 $1 $14) 52... Rb1 $1 $16 {[%emt 0:00:00] [#]} 53. Nd3+ $1 {[%emt 0:00:00]} Kd4 {[%emt 0:00:00] [#]} 54. h4 {[%emt 0:00:00]} (54. f4 $1 $16) 54... Rb3 $14 {[%emt 0:00:00]} 55. Ne1 {[%emt 0:00:00]} Rb2+ {[%emt 0:00:00]} 56. Kf3 {[%emt 0:00:00]} Rb1 {[%emt 0:00:00]} 57. Nc2+ {[%emt 0:00:00]} Ke5 {[%emt 0:00:00]} 58. Kg3 {[%emt 0:00:00]} Rb3+ {[%emt 0:00:00]} 59. Bf3 {[%emt 0:00:00]} Rb8 {[%emt 0:00:00]} 60. Ne1 {[%emt 0:00:01]} Rg8+ {[%emt 0:00:00]} 61. Kh3 {[%emt 0:00:42]} Rd8 {[%emt 0:00:00]} 62. Ng2 {[%emt 0:01:37]} Rd3 {[%emt 0:00:00]} 63. Kg3 {[%emt 0:00:05]} Ra3 {[%emt 0:00:00]} 64. Nf4 {[%emt 0:00:35]} Ra1 {[%emt 0:00:00]} (64... Rc3 $14) 65. Nd3+ {[%emt 0:01:03]} Kf6 {[%emt 0:00:00]} 66. Nf4 {[%emt 0:01:17]} ({White should try} 66. Bh5 $16) 66... Ra3 {[%emt 0:00:00]} (66... Ke5 $1 $11) 67. Ne2 {[%emt 0:01:01]} Rb3 {[%emt 0:00:00]} 68. Nf4 {[%emt 0:01:15]} Ra3 {[%emt 0:00:00]} 69. Nh3 {[%emt 0:00:04]} Rb3 {[%emt 0:00:00]} 70. Kg2 {[%emt 0:00:36]} Rb4 {[%emt 0:00:00]} 71. Kg3 {[%emt 0:00:05]} Rb3 {[%emt 0:00:00]} 72. Kg2 {[%emt 0:00:03]} Rb4 {[%emt 0:00:00]} 73. h5 {[%emt 0:00:02]} Ke5 {[%emt 0:00:00]} 74. Ng1 {[%emt 0:01:06]} Kf4 {[%emt 0:00:21]} 75. Bd5 {[%emt 0:01:24]} Kg4 {[%emt 0:01:05]} 76. Bf7 {[%emt 0:01:07]} Rb7 {[%emt 0:01:04]} 77. Bg6 {[%emt 0:00:24]} Rb3 {[%emt 0:00:41]} 78. Ne2 {[%emt 0:01:34]} f4 {[%emt 0:01:07]} 79. f3+ {[%emt 0:01:13]} Kg5 {[%emt 0:02:26]} 80. Nd4 {[%emt 0:00:15]} Rb4 {[%emt 0:00:43]} 81. Nf5 {[%emt 0:00:22]} Rb6 {[%emt 0:03:20]} 82. Kf1 {[%emt 0:01:33]} Rf6 {[%emt 0:01:39]} 83. Ng7 {[%emt 0:01:15]} Ra6 {[%emt 0:00:23]} 84. Kg2 {[%emt 0:00:14]} Kh4 {[%emt 0:00:39]} 85. Nf5+ {[%emt 0:00:13]} Kg5 {[%emt 0:00:07]} 86. Kh3 {[%emt 0:00:25]} Re6 {[%emt 0:01:00]} 87. Nd4 {[%emt 0:01:14]} Rd6 {[%emt 0:00:14]} 88. Nb5 {[%emt 0:01:03]} Rc6 {[%emt 0:00:37]} 89. Be8 {[%emt 0:00:19]} Re6 {[%emt 0:00:28]} 90. Bg6 {[%emt 0:01:07]} Rc6 {[%emt 0:00:08]} 91. Nd4 {[%emt 0:00:07]} Rd6 {[%emt 0:00:09]} 92. Ne2 {[%emt 0:00:09]} Rc6 {[%emt 0:00:40]} 93. Kg2 {[%emt 0:00:44]} Rd6 {[%emt 0:01:31]} 94. Kf2 {[%emt 0:00:36]} Rd8 {[%emt 0:01:26]} 95. Ke1 {[%emt 0:00:43]} Rd7 {[%emt 0:01:48]} 96. Nc3 {[%emt 0:01:28]} Rd8 {[%emt 0:00:24]} 97. Ne2 {[%emt 0:00:05]} Rd7 {[%emt 0:00:18]} 98. Nc3 {[%emt 0:00:51]} 1/2-1/2

[Event "FIDE World Senior-50 CC 2023"]
[Site "Terrasini"]
[Date "2023.11.02"]
[Round "8.3"]
[White "Bischoff, Klaus"]
[Black "Morovic Fernandez, Ivan"]
[Result "1/2-1/2"]
[ECO "A11"]
[WhiteElo "2473"]
[BlackElo "2488"]
[Annotator "ChessBase"]
[PlyCount "47"]
[EventDate "2023.10.22"]
[EventType "swiss"]
[EventCountry "ITA"]
[SourceTitle "playchess.com"]
[Source "ChessBase"]
[SourceQuality "1"]
[TimeControl "40/5400+30:1800+30"]

1. c4 {[%emt 0:00:07]} c6 {[%emt 0:00:44]} 2. Nf3 {[%emt 0:01:35]} d5 {[%emt 0:01:13]} 3. e3 {[%emt 0:00:20]} Nf6 {[%emt 0:00:20]} 4. Nc3 {[%emt 0:00:25]} e6 {[%emt 0:00:30]} 5. b3 {[%emt 0:00:48]} Bd6 {[%emt 0:01:31]} 6. Bb2 {[%emt 0:00:35]} O-O {[%emt 0:03:06]} 7. Qc2 {[%emt 0:01:56]} e5 {[%emt 0:03:35]} 8. cxd5 {[%emt 0:00:34]} cxd5 {[%emt 0:00:14]} 9. Nb5 {[%emt 0:00:09]} Nc6 {[%emt 0:01:21]} 10. Nxd6 {[%emt 0:00:07]} Qxd6 {[%emt 0:00:02]} 11. d4 {[%emt 0:00:25]} e4 {[%emt 0:05:33]} 12. Ne5 {[%emt 0:01:57]} Ng4 {[%emt 0:01:01]} 13. Nxc6 {[%emt 0:05:25]} bxc6 {[%emt 0:00:12]} 14. h3 {[%emt 0:02:19]} Nh6 {[%emt 0:02:40]} 15. Rc1 {[%emt 0:03:16]} Bd7 {[%emt 0:01:39]} 16. Qc5 {[%emt 0:00:41]} Qg6 {[%emt 0:05:47]} 17. Qe7 {[%emt 0:05:53]} Rfd8 {[%emt 0:03:49]} 18. Ba3 {[%emt 0:01:43]} Nf5 {[%emt 0:05:10]} 19. Qe5 {[%emt 0:03:06]} a5 {[%emt 0:03:15]} 20. Bc5 {[%emt 0:01:02]} Re8 {[%emt 0:13:03]} 21. Qf4 {[%emt 0:01:16]} h6 {[%emt 0:03:24]} 22. h4 {[%emt 0:03:22]} h5 {[%emt 0:02:41]} 23. Be2 {[%emt 0:10:31]} f6 {[%emt 0:04:19]} 24. O-O {[%emt 0:16:20]} 1/2-1/2

[Event "FIDE World Senior-50 CC 2023"]
[Site "Terrasini"]
[Date "2023.11.02"]
[Round "8.4"]
[White "Dlugy, Maxim"]
[Black "Holzke, Frank"]
[Result "1-0"]
[ECO "E15"]
[WhiteElo "2520"]
[BlackElo "2473"]
[Annotator "ChessBase"]
[PlyCount "41"]
[EventDate "2023.10.22"]
[EventType "swiss"]
[EventCountry "ITA"]
[SourceTitle "playchess.com"]
[Source "ChessBase"]
[SourceQuality "1"]
[TimeControl "40/5400+30:1800+30"]

1. d4 {[%emt 0:00:04]} Nf6 {[%emt 0:00:10]} 2. c4 {[%emt 0:00:05]} e6 {[%emt 0:00:22]} 3. Nf3 {[%emt 0:00:05]} b6 {[%emt 0:00:15]} 4. g3 {[%emt 0:00:04]} Ba6 {[%emt 0:00:17]} 5. Qa4 {[%emt 0:00:05]} Bb7 {[%emt 0:00:21]} 6. Bg2 {[%emt 0:00:04]} c5 {[%emt 0:00:13]} 7. dxc5 {[%emt 0:00:03]} bxc5 {[%emt 0:00:33]} 8. O-O {[%emt 0:00:07]} Be7 {[%emt 0:00:25]} 9. Nc3 {[%emt 0:00:15]} O-O {[%emt 0:00:25]} 10. Rd1 {[%emt 0:00:03]} d6 {[%emt 0:01:09]} 11. Bf4 {[%emt 0:00:16]} Qb6 {[%emt 0:00:22]} 12. Rab1 {[%emt 0:10:28]} Ne4 {[%emt 0:10:32]} 13. Qc2 {[%emt 0:03:43]} f5 {[%emt 0:04:18]} 14. Ne1 {[%emt 0:13:00]} Qc6 {[%emt 0:02:43]} 15. b4 {[%emt 0:06:15]} cxb4 {[%emt 0:26:34]} 16. Rxb4 {[%emt 0:00:41]} e5 {[%emt 0:00:40]} 17. Nxe4 {[%emt 0:07:34]} fxe4 {[%emt 0:02:29]} 18. Qb1 {[%emt 0:01:23]} exf4 {[%emt 0:06:27]} 19. Rxb7 {[%emt 0:00:04]} f3 {[%emt 0:00:11]} 20. Rxe7 {[%emt 0:03:36]} fxg2 {[%emt 0:00:16]} 21. Qxe4 {[%emt 0:00:05]} 1-0

[Event "FIDE World Senior-50 CC 2023"]
[Site "Terrasini"]
[Date "2023.11.02"]
[Round "8.5"]
[White "Minasian, Artashes"]
[Black "Lima, Darcy"]
[Result "1/2-1/2"]
[ECO "A36"]
[WhiteElo "2462"]
[BlackElo "2416"]
[Annotator "ChessBase"]
[PlyCount "97"]
[EventDate "2023.10.22"]
[EventType "swiss"]
[EventCountry "ITA"]
[SourceTitle "playchess.com"]
[Source "ChessBase"]
[SourceQuality "1"]
[TimeControl "40/5400+30:1800+30"]

1. c4 {[%emt 0:00:07]} c5 {[%emt 0:00:48]} 2. g3 {[%emt 0:00:11]} g6 {[%emt 0:00:34]} 3. Bg2 {[%emt 0:00:06]} Bg7 {[%emt 0:00:23]} 4. Nc3 {[%emt 0:00:13]} Nc6 {[%emt 0:00:16]} 5. d3 {[%emt 0:00:27]} Nf6 {[%emt 0:01:15]} 6. a3 {[%emt 0:00:34]} O-O {[%emt 0:00:52]} 7. Rb1 {[%emt 0:00:05]} a6 {[%emt 0:01:37]} 8. Be3 {[%emt 0:07:43]} Ng4 {[%emt 0:26:29]} 9. Bd2 {[%emt 0:04:00]} Rb8 {[%emt 0:00:28]} 10. b4 {[%emt 0:13:16]} cxb4 {[%emt 0:00:32]} 11. axb4 {[%emt 0:00:04]} b5 {[%emt 0:00:19]} 12. cxb5 {[%emt 0:01:02]} axb5 {[%emt 0:00:05]} 13. Nh3 {[%emt 0:02:21]} e6 {[%emt 0:12:17]} 14. Bxc6 {[%emt 0:13:11]} dxc6 {[%emt 0:00:09]} 15. f3 {[%emt 0:01:21]} Nf6 {[%emt 0:03:45]} 16. Qc1 {[%emt 0:02:26]} Re8 {[%emt 0:10:50]} 17. Nf2 {[%emt 0:01:08]} Ra8 {[%emt 0:02:41]} 18. O-O {[%emt 0:01:37]} Nd5 {[%emt 0:00:27]} 19. Nce4 {[%emt 0:01:20]} f5 {[%emt 0:07:55]} 20. Nc5 {[%emt 0:01:57]} Ra2 {[%emt 0:00:33]} 21. e4 {[%emt 0:01:52]} Nb6 {[%emt 0:01:01]} 22. Bc3 {[%emt 0:01:37]} e5 {[%emt 0:01:14]} 23. Ra1 {[%emt 0:01:39]} Rxa1 {[%emt 0:00:16]} 24. Qxa1 {[%emt 0:00:07]} Qe7 {[%emt 0:00:34]} 25. Re1 {[%emt 0:07:49]} fxe4 {[%emt 0:01:07]} 26. Nfxe4 {[%emt 0:01:55]} Nd5 {[%emt 0:00:22]} 27. Bd2 {[%emt 0:00:40]} Qf8 {[%emt 0:01:07]} 28. Qa8 {[%emt 0:11:32]} Ne7 {[%emt 0:09:50]} 29. Nd6 {[%emt 0:10:48]} Rd8 {[%emt 0:00:20]} 30. Nxc8 {[%emt 0:01:52]} Rxc8 {[%emt 0:00:27]} 31. Qb7 {[%emt 0:01:13]} Rb8 {[%emt 0:07:19]} 32. Qd7 {[%emt 0:00:04]} Rd8 {[%emt 0:00:35]} 33. Qe6+ {[%emt 0:02:47]} Qf7 {[%emt 0:00:33]} 34. Bg5 {[%emt 0:00:36]} Re8 {[%emt 0:01:47]} 35. Qxf7+ {[%emt 0:07:15]} Kxf7 {[%emt 0:00:02]} 36. Ne4 {[%emt 0:00:05]} Rd8 {[%emt 0:04:20]} 37. Bxe7 {[%emt 0:01:50]} Kxe7 {[%emt 0:00:02]} 38. Rc1 {[%emt 0:00:20]} Rxd3 {[%emt 0:04:38]} 39. Rxc6 {[%emt 0:00:03]} Bh6 {[%emt 0:01:21]} 40. Kg2 {[%emt 0:01:49]} Be3 {[%emt 0:00:36]} 41. h4 {[%emt 0:06:50]} Kd8 {[%emt 0:10:04]} 42. Nf6 {[%emt 0:14:46]} Rb3 {[%emt 0:10:02]} 43. Re6 {[%emt 0:01:42]} Bd4 {[%emt 0:01:41]} 44. Nd5 {[%emt 0:00:34]} Kd7 {[%emt 0:00:23]} 45. Ra6 {[%emt 0:00:17]} Rb2+ {[%emt 0:05:00]} 46. Kh3 {[%emt 0:00:19]} Rb3 {[%emt 0:00:14]} 47. Kg2 {[%emt 0:03:40]} Rb2+ {[%emt 0:00:05]} 48. Kh3 {[%emt 0:00:02]} Rb3 {[%emt 0:00:03]} 49. Kg2 {[%emt 0:02:08]} 1/2-1/2